bitfinex/quotes_SOLUSD_20250422
["timestamp","ask_amount","ask_price","bid_price","bid_amount"]
[1745287439295,17.94498398,139.32,139.28,13.19762745]
[1745287439493,7.17823558,139.31,139.29,13.19762745]
[1745287439694,7.17823558,139.31,139.3,13.19762745]
[1745287439996,7.17823558,139.31,139.29,13.19762745]
[1745287440418,7.17823558,139.31,139.28,13.19762745]
[1745287440612,7.17720519,139.33,139.29,13.19762745]
[1745287440807,7.17720519,139.33,139.26,0.14216157]
[1745287440999,7.17720519,139.33,139.3,13.19762745]
[1745287441419,7.17720519,139.33,139.31,43.12]
[1745287441620,7.17720519,139.33,139.3,13.19762745]
[1745287441921,38.37914699,139.34,139.26,0.14216157]
[1745287442125,38.37914699,139.34,139.29,13.19762745]
[1745287442622,38.37914699,139.34,139.26,0.14216157]
[1745287442919,38.37914699,139.34,139.29,13.19762745]
[1745287443293,25.18151954,139.34,139.3,13.19762745]
[1745287444529,38.37914699,139.34,139.29,13.19762745]
[1745287447204,38.37914699,139.34,139.26,0.14216157]
[1745287447408,38.37914699,139.34,139.29,13.19762745]
[1745287448320,13.19762745,139.31,139.26,13.33978902]
[1745287448516,13.19762745,139.3,139.25,13.19762745]
[1745287448908,127.64964886,139.33,139.24,13.19762745]
[1745287448909,13.19762745,139.29,139.24,13.19762745]
[1745287449422,13.19762745,139.29,139.23,29.82132745]
[1745287449716,13.19762745,139.28,139.23,23.19762745]
[1745287449925,13.19762745,139.26,139.23,10.0]
[1745287450826,38.32866787,139.27,139.23,10.0]
[1745287451709,7.18132854,139.25,139.23,10.0]
[1745287452106,13.19762745,139.24,139.23,10.0]
[1745287452812,7.18132854,139.25,139.23,10.0]
[1745287452813,20.37895599,139.25,139.23,10.0]
[1745287453204,13.19762745,139.24,139.23,10.0]
[1745287453926,20.37947174,139.24,139.23,10.0]
[1745287454437,7.18184429,139.24,139.23,10.0]
[1745287455128,7.18081286,139.26,139.23,23.19762745]
[1745287455305,7.17978173,139.28,139.25,13.19762745]
[1745287455510,7.17978173,139.28,139.26,13.19762745]
[1745287455732,7.17978173,139.28,139.25,13.19762745]
[1745287455930,25.12923606,139.28,139.23,23.19762745]
[1745287456118,38.32686351,139.28,139.23,23.19762745]
[1745287456431,13.19762745,139.26,139.23,10.0]
[1745287456828,96.19762745,139.27,139.23,10.0]
[1745287458229,7.18081286,139.26,139.23,10.0]
[1745287458436,7.17926627,139.29,139.25,13.19762745]
[1745287458630,7.17926627,139.29,139.26,13.19762745]
[1745287459120,7.17926627,139.29,139.25,13.19762745]
[1745287459324,7.17926627,139.29,139.27,13.19762745]
[1745287459522,7.17926627,139.29,139.26,13.19762745]
[1745287459931,7.17926627,139.29,139.28,13.19762745]
[1745287460308,25.12203988,139.32,139.28,13.19762745]
[1745287461135,25.12203988,139.32,139.27,13.19762745]
[1745287461311,25.12203988,139.32,139.28,13.19762745]
[1745287462135,7.17772035,139.32,139.29,13.19762745]
[1745287462333,0.063,139.34,139.31,13.19762745]
[1745287462539,0.063,139.34,139.3,13.19762745]
[1745287462734,0.063,139.34,139.31,13.19762745]
[1745287463215,0.063,139.34,139.32,13.19762745]
[1745287464329,0.063,139.34,139.31,13.19762745]
[1745287464721,0.063,139.34,139.27,50.75836157]
[1745287465028,13.26062745,139.34,139.29,13.19762745]
[1745287465408,13.26062745,139.34,139.27,24.75836157]
[1745287465609,31.84727631,139.32,139.24,6.3509]
[1745287465814,31.84727631,139.32,139.26,13.19762745]
[1745287466013,31.84727631,139.32,139.27,13.19762745]
[1745287466436,7.17823558,139.31,139.27,13.19762745]
[1745287466837,7.17823558,139.31,139.28,13.19762745]
[1745287467054,7.17823558,139.31,139.3,13.19762745]
[1745287467637,7.17720519,139.33,139.3,13.19762745]
[1745287468017,7.17720519,139.33,139.29,13.19762745]
[1745287468221,7.17720519,139.33,139.3,13.19762745]
[1745287468640,7.23969011,139.34,139.32,13.19762745]
[1745287468829,0.063,139.34,139.33,13.19762745]
[1745287470137,0.063,139.34,139.31,13.19762745]
[1745287470439,0.063,139.34,139.3,26.0]
[1745287470741,0.063,139.34,139.32,13.19762745]
[1745287471150,0.063,139.34,139.33,43.12]
[1745287471319,0.063,139.34,139.3,69.12]
[1745287471524,0.063,139.34,139.33,13.19762745]
[1745287477124,0.063,139.34,139.33,84.05708902]
[1745287477432,0.063,139.36,139.35,43.12]
[1745287477642,0.063,139.36,139.35,82.45978902]
[1745287478340,0.063,139.36,139.35,39.19762745]
[1745287478528,0.063,139.36,139.35,13.19762745]
[1745287479623,0.063,139.36,139.35,82.45978902]
[1745287483651,0.063,139.36,139.35,13.33978902]
[1745287485351,0.063,139.36,139.35,13.19762745]
[1745287488839,0.063,139.36,139.32,69.04]
[1745287489140,0.063,139.36,139.35,13.19762745]
[1745287490358,0.063,139.36,139.35,39.19762745]
[1745287490867,0.063,139.42,139.39,69.04]
[1745287491068,0.063,139.42,139.41,13.19762745]
[1745287492734,0.063,139.42,139.4,13.19762745]
[1745287493957,0.063,139.42,139.41,13.19762745]
[1745287496049,0.063,139.42,139.39,0.14216157]
[1745287496247,0.063,139.42,139.4,13.19762745]
[1745287496448,0.063,139.42,139.41,13.19762745]
[1745287497465,0.063,139.42,139.4,13.19762745]
[1745287497850,0.063,139.42,139.41,13.19762745]
[1745287498252,0.063,139.42,139.4,13.19762745]
[1745287499352,0.063,139.42,139.41,13.19762745]
[1745287503165,0.063,139.42,139.41,56.37978902]
[1745287505556,0.063,139.42,139.41,56.23762745]
[1745287506383,0.063,139.42,139.41,13.19762745]
[1745287506585,0.063,139.42,139.37,43.04]
[1745287506870,0.063,139.42,139.4,39.19762745]
[1745287507058,0.063,139.42,139.37,43.04]
[1745287507255,0.063,139.42,139.41,13.19762745]
[1745287509473,0.063,139.42,139.4,26.0]
[1745287509684,0.063,139.42,139.4,39.19762745]
[1745287509979,0.063,139.42,139.38,13.19762745]
[1745287510360,0.063,139.42,139.39,13.19762745]
[1745287510768,0.063,139.42,139.36,43.04]
[1745287510948,0.063,139.42,139.36,69.04]
[1745287511150,0.063,139.42,139.4,13.19762745]
[1745287511457,0.063,139.42,139.41,13.19762745]
[1745287511673,0.063,139.42,139.4,13.19762745]
[1745287512681,0.063,139.42,139.41,13.19762745]
[1745287514486,0.063,139.42,139.39,82.23762745]
[1745287516288,0.063,139.42,139.39,26.0]
[1745287516589,0.063,139.42,139.39,39.19762745]
[1745287516981,0.063,139.42,139.39,13.19762745]
[1745287518684,0.063,139.42,139.37,13.19762745]
[1745287519187,13.26062745,139.42,139.37,13.19762745]
[1745287519586,0.063,139.42,139.38,13.19762745]
[1745287520688,0.063,139.42,139.39,13.19762745]
[1745287521082,0.063,139.42,139.41,13.19762745]
[1745287521810,0.063,139.42,139.41,56.37978902]
[1745287522464,0.063,139.48,139.44,26.0]
[1745287522777,0.063,139.48,139.47,13.19762745]
[1745287523262,0.063,139.48,139.47,14.9889938]
[1745287523906,0.063,139.48,139.47,59.83445537]
[1745287524095,1.1134834,139.5,139.48,0.14216157]
[1745287524266,1.1134834,139.5,139.49,14.9889938]
[1745287526271,1.1134834,139.5,139.49,15.13115537]
[1745287527391,1.1134834,139.5,139.49,41.13115537]
[1745287530175,1.1134834,139.5,139.49,1.79136635]
[1745287530378,1.1134834,139.5,139.49,40.9889938]
[1745287530589,1.1134834,139.5,139.49,14.9889938]
[1745287530783,1.1134834,139.5,139.49,13.19762745]
[1745287531676,8.28194218,139.5,139.48,13.19762745]
[1745287531891,8.28194218,139.5,139.49,13.19762745]
[1745287532498,8.28194218,139.5,139.48,13.19762745]
[1745287532677,8.28194218,139.5,139.46,13.19762745]
[1745287532881,39.40071658,139.5,139.45,13.19762745]
[1745287533192,13.19762745,139.49,139.44,13.19762745]
[1745287533496,13.19762745,139.48,139.42,13.19762745]
[1745287533800,13.19762745,139.48,139.43,13.19762745]
[1745287533978,7.17000071,139.47,139.43,13.19762745]
[1745287534180,38.29262995,139.47,139.41,55.49762745]
[1745287534381,25.0950025,139.47,139.42,13.19762745]
[1745287534898,38.29262995,139.47,139.42,13.19762745]
[1745287535395,25.0950025,139.47,139.42,13.19762745]
[1745287535697,25.0950025,139.47,139.43,13.19762745]
[1745287535871,25.0950025,139.47,139.43,14.9890429]
[1745287536072,25.0950025,139.47,139.44,13.19762745]
[1745287537383,7.17000071,139.47,139.44,13.19762745]
[1745287537702,7.17000071,139.47,139.46,13.19762745]
[1745287538206,7.16897268,139.49,139.46,13.19762745]
[1745287538801,7.16897268,139.49,139.47,13.19762745]
[1745287538987,7.16897268,139.49,139.45,56.23762745]
[1745287539309,25.09140439,139.49,139.45,56.23762745]
[1745287539498,25.09140439,139.49,139.44,13.19762745]
[1745287539901,25.09140439,139.49,139.42,43.04]
[1745287540087,25.09140439,139.49,139.45,13.19762745]
[1745287540277,38.28903184,139.49,139.44,13.19762745]
[1745287540801,13.19762745,139.48,139.43,13.19762745]
[1745287541600,13.19762745,139.45,139.4,13.19762745]
[1745287541811,13.19762745,139.44,139.39,13.19762745]
[1745287541977,13.19762745,139.42,139.36,13.19762745]
[1745287542177,13.19762745,139.41,139.33,104.9643]
[1745287542395,13.19762745,139.41,139.35,56.23762745]
[1745287542602,7.17360114,139.4,139.35,56.23762745]
[1745287542782,7.17360114,139.4,139.36,13.19762745]
[1745287542981,7.17360114,139.4,139.38,0.063]
[1745287546288,17.93339634,139.41,139.38,0.063]
[1745287547486,39.00160054,139.41,139.38,0.063]
[1745287547807,21.0682042,139.4,139.38,0.063]
[1745287548185,21.0682042,139.39,139.38,0.063]
[1745287548608,28.24231999,139.39,139.38,0.063]
[1745287550621,46.17760946,139.39,139.34,21.0682042]
[1745287550796,21.0682042,139.38,139.33,21.1312042]
[1745287550993,21.0682042,139.37,139.33,0.063]
[1745287552604,25.11481056,139.36,139.33,0.063]
[1745287553004,7.17566016,139.36,139.34,21.0682042]
[1745287553711,25.11481056,139.36,139.33,0.063]
[1745287554029,21.0682042,139.34,139.33,0.063]
[1745287554320,39.71785306,139.34,139.33,1e-08]
[1745287554819,46.89454317,139.34,139.33,1e-08]
[1745287556216,18.64964886,139.33,139.3,1e-08]
[1745287556521,39.71785306,139.31,139.3,1e-08]
[1745287556723,46.89608864,139.31,139.3,1e-08]
[1745287557804,72.89608864,139.31,139.3,1e-08]
[1745287559831,26.0,139.28,139.27,1e-08]
[1745287560003,47.0682042,139.28,139.27,1e-08]
[1745287561108,54.24798593,139.28,139.27,1e-08]
[1745287561498,7.17875089,139.3,139.27,21.06820421]
[1745287561701,7.17875089,139.3,139.28,21.0682042]
[1745287562113,7.17772035,139.32,139.29,21.0682042]
[1745287562321,7.17772035,139.32,139.3,21.0682042]
[1745287563203,25.11969578,139.34,139.3,21.0682042]
[1745287563604,25.11969578,139.34,139.27,0.14216158]
[1745287563818,25.11969578,139.34,139.3,21.0682042]
[1745287564504,25.11969578,139.34,139.27,0.14216158]
[1745287564702,7.17669011,139.34,139.32,21.0682042]
[1745287565116,138.30679341,139.37,139.31,21.0682042]
[1745287565117,28.24386436,139.36,139.31,21.0682042]
[1745287566224,7.17566016,139.36,139.31,21.0682042]
[1745287566924,46.18301476,139.36,139.31,21.0682042]
[1745287567417,46.18301476,139.36,139.3,21.0682042]
[1745287567825,21.0682042,139.34,139.27,59.48216158]
[1745287568039,21.0682042,139.33,139.28,21.0682042]
[1745287568324,7.17772035,139.32,139.28,21.0682042]
[1745287568533,28.24592455,139.32,139.27,1e-08]
[1745287568730,21.0682042,139.29,139.27,1e-08]
[1745287570629,7.17978173,139.28,139.27,1e-08]
[1745287571024,7.17941157,139.29,139.27,1e-08]
[1745287571610,28.24761577,139.29,139.27,1e-08]
[1745287572833,39.71785306,139.28,139.27,1e-08]
[1745287573226,18.64964886,139.28,139.27,1e-08]
[1745287573539,54.24761577,139.29,139.27,1e-08]
[1745287573719,33.17941157,139.29,139.27,1e-08]
[1745287573918,7.17941157,139.29,139.27,1e-08]
[1745287574132,28.24761577,139.29,139.27,1e-08]
[1745287575240,7.17941157,139.29,139.27,1e-08]
[1745287576036,20.36911791,139.29,139.27,1e-08]
[1745287576634,20.36948807,139.28,139.27,1e-08]
[1745287577329,7.17978173,139.28,139.27,1e-08]
[1745287579033,20.36948807,139.28,139.27,1e-08]
[1745287579447,39.01913693,139.28,139.27,1e-08]
[1745287582734,106.05720627,139.28,139.23,10.0]
[1745287582929,13.18970634,139.24,139.23,10.0]
[1745287583640,57.8393552,139.26,139.23,10.0]
[1745287583843,112.48970634,139.27,139.23,10.0]
[1745287584044,7.17978173,139.28,139.26,13.18970634]
[1745287584239,7.17978173,139.28,139.27,13.18970634]
[1745287584843,25.12503281,139.31,139.27,13.18970634]
[1745287585955,13.18970634,139.3,139.25,13.18970634]
[1745287586150,13.18970634,139.28,139.24,6.4702]
[1745287586332,13.18970634,139.28,139.23,10.0]
[1745287586537,13.18970634,139.27,139.23,10.0]
[1745287586745,31.8393552,139.28,139.23,23.18970634]
[1745287586945,7.18029726,139.27,139.23,10.0]
[1745287587243,25.13104042,139.27,139.23,10.0]
[1745287587450,25.13104042,139.27,139.23,23.18970634]
[1745287587652,7.18029726,139.27,139.24,13.18970634]
[1745287587957,7.18029726,139.27,139.25,13.18970634]
[1745287588557,7.18029726,139.27,139.23,10.0]
[1745287589052,25.13104042,139.27,139.24,1.79381296]
[1745287589379,25.13104042,139.27,139.24,14.9835193]
[1745287589654,25.13104042,139.27,139.24,13.18970634]
[1745287590058,25.13104042,139.27,139.23,23.18970634]
[1745287590234,13.18970634,139.25,139.23,10.0]
[1745287590635,140.8393552,139.26,139.23,10.0]
[1745287591152,7.18132854,139.25,139.23,10.0]
[1745287591541,7.18098689,139.26,139.24,13.18970634]
[1745287591853,7.18098689,139.26,139.25,13.18970634]
[1745287592055,7.17978173,139.28,139.25,13.18970634]
[1745287592270,7.17978173,139.28,139.27,13.18970634]
[1745287593151,7.17823558,139.31,139.27,13.18970634]
[1745287593352,7.17823558,139.31,139.29,21.08907179]
[1745287594361,7.17823558,139.31,139.26,1.5503]
[1745287594652,25.12382455,139.31,139.27,22.88253986]
[1745287594845,25.12382455,139.31,139.28,21.08907179]
[1745287595249,25.12382455,139.31,139.26,1.5503]
[1745287595439,17.44558897,139.31,139.28,21.08907179]
[1745287595940,17.44558897,139.31,139.27,21.08907179]
[1745287596141,17.44558897,139.31,139.28,1.79346056]
[1745287596900,38.53466076,139.31,139.29,1.79346056]
[1745287597051,122.73872065,139.3,139.23,10.0]
[1745287597238,21.08907179,139.27,139.23,10.0]
[1745287597439,101.64964886,139.26,139.23,10.0]
[1745287597665,21.08907179,139.24,139.23,10.0]
[1745287598169,101.64964886,139.26,139.23,10.0]
[1745287598344,21.08907179,139.25,139.23,10.0]
[1745287598764,7.18184429,139.24,139.23,10.0]
[1745287600068,7.18102426,139.26,139.23,31.08907179]
[1745287600364,7.17823558,139.31,139.26,0.14216157]
[1745287600558,7.17823558,139.31,139.29,21.08907179]
[1745287600767,122.03198577,139.34,139.28,21.08907179]
[1745287600768,7.17772035,139.32,139.28,21.08907179]
[1745287602350,7.17772035,139.32,139.25,0.14216157]
[1745287602351,21.08907179,139.31,139.25,0.14216157]
[1745287602571,46.21109303,139.32,139.27,21.08907179]
[1745287603076,25.12202124,139.32,139.28,21.08907179]
[1745287604052,7.17772035,139.32,139.31,21.08907179]
[1745287604862,7.17669011,139.34,139.31,21.08907179]
[1745287606671,25.11521369,139.36,139.31,21.08907179]
[1745287607177,25.11521369,139.36,139.32,21.08907179]
[1745287608096,7.17566016,139.36,139.33,21.08907179]
[1745287608298,0.063,139.38,139.35,21.08907179]
[1745287608464,0.063,139.38,139.37,21.08907179]
[1745287610282,0.063,139.38,139.33,26.0]
[1745287610482,0.063,139.38,139.36,21.08907179]
[1745287611202,0.063,139.38,139.37,43.04]
[1745287611391,0.063,139.38,139.36,21.08907179]
[1745287611588,0.063,139.38,139.37,21.08907179]
[1745287612867,0.063,139.38,139.37,64.27123336]
[1745287613789,0.063,139.38,139.37,21.08907179]
[1745287613991,0.063,139.38,139.35,43.18216157]
[1745287614188,0.063,139.38,139.36,21.08907179]
[1745287614683,0.063,139.38,139.35,21.08907179]
[1745287614891,0.063,139.38,139.34,21.08907179]
[1745287615600,21.08907179,139.35,139.28,6.4989]
[1745287615805,21.08907179,139.34,139.29,21.08907179]
[1745287616115,21.08907179,139.35,139.3,21.08907179]
[1745287616296,21.08907179,139.35,139.29,69.04]
[1745287616681,7.17720519,139.33,139.29,21.08907179]
[1745287617292,28.26627698,139.33,139.28,32.4989]
[1745287617518,28.26627698,139.33,139.28,53.58797179]
[1745287617683,46.20928997,139.33,139.28,53.58797179]
[1745287617888,46.20928997,139.33,139.28,27.58797179]
[1745287618289,46.20928997,139.33,139.28,21.08907179]
[1745287619100,46.20928997,139.33,139.26,85.32]
[1745287619306,46.20928997,139.33,139.28,21.08907179]
[1745287619919,25.12021818,139.33,139.29,21.08907179]
[1745287620210,7.17720519,139.33,139.29,21.08907179]
[1745287620414,7.17720519,139.33,139.31,21.08907179]
[1745287620585,7.17720519,139.33,139.32,21.08907179]
[1745287621613,17.94049167,139.35,139.32,21.08907179]
[1745287621812,7.17617509,139.35,139.32,21.08907179]
[1745287622113,7.17514529,139.37,139.34,21.08907179]
[1745287622311,7.17514529,139.37,139.36,21.08907179]
[1745287623092,0.063,139.38,139.36,21.08907179]
[1745287623392,0.063,139.38,139.34,21.08907179]
[1745287623598,21.15207179,139.38,139.33,21.08907179]
[1745287623783,21.08907179,139.37,139.32,70.62797179]
[1745287623983,46.20208032,139.37,139.29,43.04]
[1745287624185,21.08907179,139.33,139.28,6.4989]
[1745287624404,21.08907179,139.32,139.27,21.08907179]
[1745287624610,21.08907179,139.32,139.28,1.79319834]
[1745287624984,18.64964886,139.34,139.28,1.79319834]
[1745287624985,21.08907179,139.31,139.28,1.79319834]
[1745287625215,21.08907179,139.31,139.26,21.08907179]
[1745287625524,21.08907179,139.32,139.27,21.08907179]
[1745287625691,21.08907179,139.32,139.25,69.04]
[1745287625891,7.17823558,139.31,139.27,21.08907179]
[1745287626212,7.17823558,139.31,139.29,21.08907179]
[1745287626413,7.17823558,139.31,139.28,21.08907179]
[1745287626599,7.17823558,139.31,139.3,0.03]
[1745287627297,46.21289634,139.31,139.25,64.12907179]
[1745287627503,21.08907179,139.3,139.25,64.12907179]
[1745287627701,21.08907179,139.29,139.23,10.03]
[1745287627889,46.21830785,139.28,139.23,10.03]
[1745287628095,46.21830785,139.28,139.23,31.11907179]
[1745287629006,21.08907179,139.27,139.23,10.03]
[1745287629209,21.08907179,139.26,139.23,10.03]
[1745287630084,7.18132854,139.25,139.23,10.03]
[1745287631028,7.18132854,139.25,139.24,21.08907179]
[1745287631531,7.18132854,139.25,139.23,31.11907179]
[1745287631719,7.18132854,139.25,139.23,10.03]
[1745287632113,18.64964886,139.28,139.23,31.11907179]
[1745287632304,39.73872065,139.28,139.23,10.03]
[1745287632504,21.08907179,139.27,139.23,10.03]
[1745287633323,39.73872065,139.28,139.23,31.11907179]
[1745287633527,18.64964886,139.28,139.23,31.11907179]
[1745287633705,39.73872065,139.28,139.23,31.11907179]
[1745287634328,25.13104042,139.27,139.23,10.03]
[1745287637630,46.22011221,139.27,139.23,10.03]
[1745287641524,25.13104042,139.27,139.23,31.11907179]
[1745287642515,139.01872065,139.33,139.26,21.08907179]
[1745287642829,25.12319693,139.32,139.31,21.08907179]
[1745287643033,25.11661283,139.35,139.3,21.08907179]
[1745287643411,46.20568462,139.35,139.3,21.08907179]
[1745287643929,25.11661283,139.35,139.31,21.08907179]
[1745287644328,25.11661283,139.35,139.32,21.08907179]
[1745287644527,7.17617509,139.35,139.33,21.08907179]
[1745287644724,7.17617509,139.35,139.34,21.08907179]
[1745287645243,25.11306635,139.37,139.34,21.08907179]
[1745287645529,25.11306635,139.37,139.33,21.08907179]
[1745287645739,7.17514529,139.37,139.35,21.08907179]
[1745287645942,7.17514529,139.37,139.34,21.08907179]
[1745287647342,7.17514529,139.37,139.33,21.08907179]
[1745287647525,7.17514529,139.37,139.34,21.08907179]
[1745287647929,7.17514529,139.37,139.33,21.08907179]
[1745287648130,21.08907179,139.35,139.31,26.0]
[1745287648320,21.08907179,139.34,139.27,6.468]
[1745287648526,21.08907179,139.29,139.28,1.79309642]
[1745287649117,28.26833806,139.29,139.23,63.58707179]
[1745287649542,28.26833806,139.29,139.23,37.58707179]
[1745287649734,28.26833806,139.29,139.23,63.58707179]
[1745287649941,46.21650375,139.29,139.23,63.58707179]
[1745287650528,25.12743196,139.29,139.25,21.08907179]
[1745287651432,46.21650375,139.29,139.24,21.08907179]
[1745287652744,21.08907179,139.28,139.23,106.62707179]
[1745287653053,46.21650375,139.29,139.23,106.62707179]
[1745287653543,46.21650375,139.29,139.24,21.08907179]
[1745287653755,25.12743196,139.29,139.24,21.08907179]
[1745287654554,7.17823558,139.31,139.28,21.08907179]
[1745287654744,7.17823558,139.31,139.27,21.08907179]
[1745287654938,21.08907179,139.3,139.25,47.08907179]
[1745287655143,21.08907179,139.3,139.24,43.04]
[1745287655752,21.08907179,139.29,139.24,43.04]
[1745287655955,21.08907179,139.3,139.24,64.12907179]
[1745287656638,7.17926627,139.29,139.24,43.04]
[1745287656846,7.17926627,139.29,139.24,64.12907179]
[1745287658061,7.17926627,139.29,139.25,64.12907179]
[1745287658440,25.12743196,139.29,139.23,42.64016157]
[1745287658765,46.21650375,139.29,139.23,106.76923336]
[1745287658959,46.21650375,139.29,139.24,21.08907179]
[1745287659140,25.12743196,139.29,139.25,21.08907179]
[1745287659537,7.17926627,139.29,139.26,21.08907179]
[1745287659757,7.17926627,139.29,139.27,21.08907179]
[1745287659956,7.17926627,139.29,139.26,21.08907179]
[1745287660144,7.17926627,139.29,139.25,64.12907179]
[1745287660550,7.17926627,139.29,139.26,21.08907179]
[1745287660857,25.12567431,139.3,139.26,21.08907179]
[1745287662266,7.17875089,139.3,139.27,21.08907179]
[1745287662760,7.17823558,139.31,139.27,21.08907179]
[1745287663360,28.26730737,139.31,139.25,21.08907179]
[1745287663537,21.08907179,139.3,139.25,21.08907179]
[1745287663860,46.21289634,139.31,139.25,21.08907179]
[1745287664159,25.12382455,139.31,139.27,21.08907179]
[1745287664558,25.12382455,139.31,139.26,22.88272098]
[1745287665364,25.12382455,139.31,139.26,64.12907179]
[1745287665540,25.12382455,139.31,139.27,21.08907179]
[1745287665740,25.12382455,139.31,139.26,64.12907179]
[1745287665942,21.08907179,139.3,139.25,21.08907179]
[1745287667161,7.17926627,139.29,139.25,21.08907179]
[1745287667654,7.17926627,139.29,139.27,21.08907179]
[1745287668057,7.17926627,139.29,139.26,65.9226567]
[1745287668556,7.17926627,139.29,139.27,1.79358491]
[1745287668950,28.26833806,139.29,139.27,1.79358491]
[1745287669258,20.36970083,139.29,139.27,1.79358491]
[1745287669457,13.19043456,139.28,139.27,1.79358491]
[1745287669753,13.19043456,139.28,139.23,29.68843456]
[1745287669967,13.19043456,139.28,139.23,10.03]
[1745287670156,13.19043456,139.28,139.23,23.22043456]
[1745287670865,13.19043456,139.28,139.24,1.79395147]
[1745287671562,13.19043456,139.28,139.25,1.79395147]
[1745287671763,7.18029726,139.27,139.25,1.79395147]
[1745287672752,7.18029726,139.27,139.23,10.03]
[1745287673167,7.18029726,139.27,139.23,23.22043456]
[1745287673763,7.18029726,139.27,139.24,1.79395177]
[1745287674475,7.18029726,139.27,139.25,1.79395177]
[1745287675466,7.18029726,139.27,139.23,23.22043456]
[1745287676271,7.18029726,139.27,139.24,1.79381812]
[1745287676677,25.12743196,139.29,139.25,13.33259613]
[1745287676981,13.19043456,139.28,139.24,1.79381812]
[1745287677144,13.19043456,139.28,139.26,1.79381812]
[1745287678370,13.19043456,139.28,139.23,23.22043456]
[1745287678668,7.18029726,139.27,139.23,23.22043456]
[1745287679170,7.18029726,139.27,139.24,1.7938414]
[1745287679358,25.13104042,139.27,139.24,1.7938414]
[1745287679864,13.19043456,139.25,139.23,10.03]
[1745287680069,13.19043456,139.24,139.23,10.03]
[1745287680668,7.18132854,139.25,139.23,10.03]
[1745287680875,20.3717631,139.25,139.23,10.03]
[1745287681372,7.18132854,139.25,139.23,10.03]
[1745287683656,13.19043456,139.24,139.23,10.03]
[1745287683859,7.18132854,139.25,139.23,10.03]
[1745287684165,20.3717631,139.25,139.23,10.03]
[1745287684363,13.19043456,139.24,139.23,10.03]
[1745287684671,20.3717631,139.25,139.23,10.03]
[1745287684970,7.18132854,139.25,139.23,10.03]
[1745287685150,13.19043456,139.24,139.23,10.03]
[1745287685550,20.3717631,139.25,139.23,10.03]
[1745287686678,13.19043456,139.24,139.22,0.03]
[1745287687009,13.19043456,139.23,139.22,0.03]
[1745287687158,20.37227885,139.24,139.22,0.03]
[1745287687580,13.19043456,139.23,139.21,0.03]
[1745287687877,31.84008342,139.22,139.19,0.063]
[1745287688079,26.0,139.23,139.19,0.063]
[1745287688373,13.19043456,139.21,139.19,0.063]
[1745287688547,13.19043456,139.2,139.17,0.03]
[1745287689096,7.18442416,139.19,139.17,0.03]
[1745287690955,13.19043456,139.18,139.17,1e-08]
[1745287691256,20.37537492,139.18,139.17,1e-08]
[1745287691457,7.18494036,139.18,139.17,1e-08]
[1745287693070,20.37537492,139.18,139.17,1e-08]
[1745287693886,7.18494036,139.18,139.17,1e-08]
[1745287694469,20.37537492,139.18,139.17,1e-08]
[1745287697682,39.02502378,139.18,139.17,1e-08]
[1745287698498,18.64964886,139.17,139.14,1e-08]
[1745287698784,7.18752246,139.13,139.12,1e-08]
[1745287699084,20.37795702,139.13,139.12,1e-08]
[1745287699464,20.37795702,139.13,139.11,1e-08]
[1745287699669,13.19043456,139.12,139.11,1e-08]
[1745287699974,13.19043456,139.12,139.1,1e-08]
[1745287700179,13.19043456,139.11,139.1,1e-08]
[1745287700758,20.37899037,139.11,139.1,1e-08]
[1745287701178,20.37899037,139.11,139.09,1e-08]
[1745287701363,13.19043456,139.1,139.09,1e-08]
[1745287702776,20.37950716,139.1,139.09,1e-08]
[1745287704084,39.02915602,139.1,139.09,1e-08]
[1745287705275,20.37950716,139.1,139.09,1e-08]
[1745287705687,39.02915602,139.1,139.09,1e-08]
[1745287705891,57.00183754,139.1,139.03,42.10300002]
[1745287706084,13.19043456,139.09,139.02,0.14216157]
[1745287706265,13.19043456,139.09,139.03,13.19043456]
[1745287706887,25.16537244,139.08,139.03,13.19043456]
[1745287707082,25.16537244,139.08,139.02,0.14216157]
[1745287707083,38.355807,139.08,139.02,0.14216157]
[1745287707286,13.19043456,139.07,139.02,13.33259613]
[1745287707479,13.19043456,139.07,139.03,0.03]
[1745287707683,38.355807,139.08,139.03,13.22043456]
[1745287708196,25.16537244,139.08,139.03,0.03]
[1745287708368,38.355807,139.08,139.03,13.22043456]
[1745287710419,25.16537244,139.08,139.05,13.19043456]
[1745287710574,7.19010641,139.08,139.05,13.19043456]
[1745287710770,7.19010641,139.08,139.03,0.03]
[1745287710771,7.19010641,139.08,139.06,13.19043456]